fUST/lending_fUST_20240920
["ID","MTS","AMOUNT","RATE_DAILY","PERIOD"]
[338636028,1726830640840,-300.525759,0.00016379,2]
[338636029,1726830640850,-154.953623,0.00016385,2]
[338636030,1726830640860,-154.953623,0.00016385,2]
[338636031,1726830640869,-154.953623,0.00016386,2]
[338636032,1726830640879,-154.953623,0.00016386,2]
[338636033,1726830640888,-154.953623,0.00016386,2]
[338636034,1726830640898,-154.953623,0.00016386,2]
[338636035,1726830640908,-151.0,0.00016387,2]
[338636036,1726830640917,-151.0,0.00016387,2]
[338636037,1726830640928,-151.0,0.00016387,2]
[338636038,1726830640938,-151.0,0.00016387,2]
[338636039,1726830640948,-151.0,0.00016387,2]
[338636040,1726830640957,-151.0,0.00016387,2]
[338636041,1726830640968,-151.0,0.00016387,2]
[338636042,1726830640978,-171.756935,0.00016387,2]
[338636043,1726830640988,-171.756935,0.00016387,2]
[338636044,1726830640998,-151.0,0.00016387,2]
[338636045,1726830641008,-46.84960277,0.00016387,2]
[338636046,1726830641020,-104.15039723,0.00016387,2]
[338636047,1726830641030,-151.0,0.00016387,2]
[338636048,1726830641042,-199.95451,0.00016387,2]
[338636049,1726830641052,-525.478302,0.00016387,2]
[338636050,1726830641062,-525.478302,0.00016387,2]
[338636051,1726830641071,-68.43848877,0.00016387,2]
[338636052,1726830641083,-82.56151123,0.00016387,2]
[338636053,1726830641093,-151.0,0.00016387,2]
[338636054,1726830641104,-151.0,0.00016387,2]
[338636055,1726830641114,-151.0,0.00016388,2]
[338636056,1726830641124,-151.0,0.00016388,2]
[338636057,1726830641133,-151.0,0.00016388,2]
[338636058,1726830641142,-151.0,0.00016388,2]
[338636059,1726830641152,-151.964469,0.00016388,2]
[338636060,1726830641161,-524.133417,0.00016388,2]
[338636061,1726830641170,-341.97981117,0.00016388,2]
[338636068,1726830643560,-182.15360583,0.00016388,2]
[338636069,1726830643571,-151.207328,0.00016388,2]
[338636070,1726830643580,-151.207328,0.00016388,2]
[338636071,1726830643590,-151.207328,0.00016388,2]
[338636073,1726830643599,-151.207328,0.00016388,2]
[338636074,1726830643609,-360.028336,0.00016388,2]
[338636075,1726830643620,-360.028336,0.00016388,2]
[338636076,1726830643629,-360.028336,0.00016388,2]
[338636077,1726830643639,-360.028336,0.00016388,2]
[338636078,1726830643648,-151.0,0.00016388,2]
[338636079,1726830643658,-151.0,0.00016388,2]
[338636080,1726830643667,-151.0,0.00016388,2]
[338636081,1726830643677,-151.0,0.00016388,2]
[338636082,1726830643686,-151.0,0.00016388,2]
[338636083,1726830643696,-151.0,0.00016388,2]
[338636084,1726830643705,-282.815918,0.00016388,2]
[338636085,1726830643714,-151.0,0.00016388,2]
[338636086,1726830643724,-151.0,0.00016388,2]
[338636087,1726830643733,-151.0,0.00016388,2]
[338636088,1726830643743,-272.893453,0.00016388,2]
[338636089,1726830643752,-151.0,0.00016388,2]
[338636090,1726830643766,-151.0,0.00016388,2]
[338636091,1726830643775,-511.33648474,0.0001639,5]
[338636092,1726830643787,-6529.9625597,0.0001639,5]
[338636093,1726830643796,-21634.37756081,0.0001639,2]
[338636101,1726830646430,-151.0,0.00016388,2]
[338636102,1726830646440,-484.9,0.0001639,2]
[338636301,1726831838603,-167.354954,0.00015101,2]
[338636302,1726831838613,-167.354954,0.00015158,2]
[338636303,1726831838623,-167.354954,0.00015214,2]
[338636304,1726831838632,-246.5224538,0.00015232,2]
[338636305,1726831838641,-167.354954,0.0001527,2]
[338636306,1726831838650,-167.354954,0.00015326,2]
[338636307,1726831838660,-300.0,0.00015356,2]
[338636308,1726831838670,-300.0,0.00015356,2]
[338636309,1726831838679,-666.7396065,0.00015357,2]
[338636310,1726831838692,-1292.95750264,0.00015357,2]
[338636311,1726831838703,-3062.45863511,0.00015357,2]
[338636316,1726831840563,-2073.27057631,0.00015357,2]
[338636317,1726831840597,-17804.57367944,0.00015357,2]
[338636318,1726831840607,-167.354954,0.00015383,2]
[338636319,1726831840617,-167.354954,0.00015439,2]
[338636320,1726831840626,-167.354954,0.00015495,2]
[338636321,1726831840635,-167.354954,0.00015551,2]
[338636322,1726831840644,-167.354954,0.00015607,2]
[338636323,1726831840655,-167.354954,0.00015664,2]
[338636324,1726831840664,-167.354954,0.0001572,2]
[338636325,1726831840674,-167.354954,0.00015776,2]
[338636326,1726831840684,-167.354954,0.00015832,2]
[338636327,1726831840694,-167.354954,0.00015889,2]
[338636328,1726831840705,-4819.02824089,0.00016022,2]
[338636329,1726831840714,-7247.52624048,0.00016218,2]
[338636330,1726831840723,-1000.0,0.00016318,2]
[338636331,1726831840733,-184.86696316,0.00016318,2]
[338636332,1726831840742,-1210.30948332,0.0001633,2]
[338636333,1726831840751,-18411.33574485,0.00016338,2]
[338636338,1726831843613,-3064.24057597,0.00016338,2]
[338636339,1726831843733,-1436.02927167,0.00016338,2]
[338636341,1726831843742,-391.25138086,0.00016348,2]
[338636343,1726831843754,-350.00768034,0.00016348,2]
[338636355,1726831846558,-474.7409388,0.00016348,2]
[338636356,1726831846569,-442.39125597,0.00016389,2]
[338636357,1726831846579,-151.0,0.00016398,2]
[338636358,1726831846588,-259.62798274,0.00016398,2]
[338636567,1726833032664,-201.3325957,0.00014775,2]
[338636568,1726833032674,-163.04785703,0.00015,2]
[338636569,1726833032683,-300.0,0.00015231,2]
[338636570,1726833032692,-300.0,0.00015231,2]
[338636571,1726833032711,-24900.0,0.00015232,2]
[338636573,1726833032721,-896.43242396,0.0001566,2]
[338636574,1726833032731,-3658.87,0.00016,2]
[338636576,1726833032740,-4819.02824089,0.0001601,2]
[338636578,1726833032750,-153.0,0.000161,2]
[338636580,1726833032759,-153.0,0.000161,2]
[338636582,1726833032769,-153.0,0.000161,2]
[338636583,1726833032778,-153.0,0.000161,2]
[338636584,1726833032787,-1000.0,0.00016216,2]
[338636585,1726833032796,-153.0,0.000163,2]
[338636586,1726833032806,-153.0,0.000163,2]
[338636587,1726833032815,-156.9941997,0.000163,2]
[338636588,1726833032824,-153.0,0.000163,2]
[338636589,1726833032833,-150.0,0.00016322,2]
[338636590,1726833032842,-524.0,0.00016322,2]
[338636591,1726833032853,-1216.0,0.00016322,2]
[338636592,1726833032862,-1089.27853506,0.0001633,2]
[338636593,1726833032872,-1000.0,0.0001634,2]
[338636594,1726833032882,-442.39125597,0.00016397,2]
[338636595,1726833032891,-1672.817,0.00016398,2]
[338636596,1726833032900,-191.127,0.00016398,2]
[338636597,1726833032910,-3520.64952222,0.00016398,5]
[338636598,1726833032919,-41953.90315324,0.00016398,2]
[338636599,1726833032930,-6708.84701711,0.00016398,2]
[338636608,1726833038704,-43865.29545935,0.00016398,2]
[338636609,1726833038714,-4897.8315767,0.00016398,2]
[338636610,1726833038724,-453340.60608892,0.000164,2]
[338636611,1726833038733,-104731.181799,0.000164,2]
[338636612,1726833038742,-150.112233,0.000164,2]
[338636613,1726833038751,-150.112233,0.000164,2]
[338636614,1726833038760,-150.112233,0.000164,2]
[338636615,1726833038769,-150.112233,0.000164,2]
[338636616,1726833038778,-150.112233,0.000164,2]
[338636617,1726833038788,-154.34657,0.000164,2]
[338636618,1726833038797,-3000.0,0.000164,2]
[338636619,1726833038807,-151.0,0.00016407,2]
[338636620,1726833038816,-151.0,0.00016407,2]
[338636621,1726833038825,-500.0,0.00016407,2]
[338636622,1726833038834,-500.0,0.00016407,2]
[338636623,1726833038843,-500.0,0.00016407,2]
[338636624,1726833038853,-500.0,0.00016407,2]
[338636625,1726833038871,-500.0,0.00016407,2]
[338636626,1726833038880,-500.0,0.00016407,2]
[338636627,1726833038889,-500.0,0.00016407,2]
[338636628,1726833038897,-500.0,0.00016407,2]
[338636629,1726833038906,-500.0,0.00016407,2]
[338636630,1726833038915,-500.0,0.00016407,2]
[338636631,1726833038924,-500.0,0.00016407,2]
[338636632,1726833038933,-500.0,0.00016407,2]
[338636633,1726833038942,-500.0,0.00016407,2]
[338636634,1726833038951,-500.0,0.00016407,2]
[338636635,1726833038961,-500.0,0.00016407,2]
[338636636,1726833038970,-500.0,0.00016407,2]
[338636637,1726833038982,-500.0,0.00016407,2]
[338636638,1726833038991,-345.75219475,0.00016407,2]
[338636639,1726833039000,-500.0,0.00016407,2]
[338636640,1726833039009,-500.0,0.00016407,2]
[338636641,1726833039019,-500.0,0.00016407,2]
[338636642,1726833039028,-500.0,0.00016407,2]
[338636643,1726833039039,-500.0,0.00016407,2]
[338636644,1726833039048,-500.0,0.00016407,2]
[338636645,1726833039058,-612.53166109,0.00016407,2]
[338636646,1726833039067,-500.0,0.00016407,2]
[338636647,1726833039077,-500.0,0.00016407,2]
[338636648,1726833039087,-240.35010699,0.00016407,2]
[338636649,1726833039095,-500.0,0.00016407,2]
[338636650,1726833039109,-500.0,0.00016407,2]
[338636651,1726833039118,-500.0,0.00016407,2]
[338636652,1726833039127,-500.0,0.00016407,2]
[338636653,1726833039137,-500.0,0.00016407,2]
[338636654,1726833039146,-500.0,0.00016407,2]
[338636655,1726833039155,-500.0,0.00016407,2]
[338636656,1726833039164,-171.756935,0.00016408,2]
[338636657,1726833039174,-171.756935,0.00016408,2]
[338636658,1726833039183,-151.0,0.00016408,2]
[338636659,1726833039193,-151.0,0.00016408,2]
[338636660,1726833039203,-151.0,0.00016408,2]
[338636661,1726833039213,-151.0,0.00016408,2]
[338636662,1726833039223,-151.0,0.00016408,2]
[338636663,1726833039233,-319.831622,0.00016408,2]
[338636664,1726833039243,-319.831622,0.00016408,2]
[338636665,1726833039253,-151.0,0.00016408,2]
[338636666,1726833039263,-151.0,0.00016408,2]
[338636667,1726833039272,-35.96308233,0.00016408,2]
[338636668,1726833039308,-213.73075767,0.00016408,2]
[338636669,1726833039319,-4384.54553553,0.00016408,2]
[338636670,1726833039331,-19605.51419831,0.00016408,2]
[338636696,1726833040634,-390.80652837,0.00016408,2]
[338636697,1726833040688,-5270.01570441,0.00016408,2]
[338636698,1726833040700,-12690.0,0.00016408,2]
[338636717,1726833043793,-4153.46180991,0.00016408,2]
[338636771,1726833590098,20349.72692705,0.000199,120]
[338636799,1726833919244,150.57,0.00014013,2]
[338636853,1726834231868,-300.0,0.00014644,2]
[338636855,1726834231878,-99.91990201,0.00014644,2]
[338636857,1726834231890,-200.08009799,0.00014644,2]
[338636859,1726834231901,-136.30094816,0.00014645,2]
[338636862,1726834231921,-2670.5029375,0.00014645,2]
[338637435,1726834237861,-22093.19611434,0.00014645,2]
[338637437,1726834237872,-2947.9091472,0.00014661,2]
[338637439,1726834237882,-204.6163042,0.00015351,2]
[338637441,1726834237891,-330.05090625,0.000159,2]
[338637443,1726834237905,-40434.2259935,0.0001599,2]
[338637445,1726834237914,-2204.02420949,0.0001599,2]
[338637447,1726834237924,-1000.0,0.00016,16]
[338637449,1726834237934,-59643.0,0.00016,2]
[338637451,1726834237943,-153.0,0.00016,2]
[338637453,1726834237954,-153.0,0.00016,2]
[338637455,1726834237964,-11617.97622,0.00016,2]
[338637457,1726834237973,-153.0,0.00016,2]
[338637459,1726834237983,-153.0,0.00016,2]
[338637461,1726834237992,-208.8377925,0.00016,2]
[338637463,1726834238002,-153.0,0.00016,2]
[338637465,1726834238013,-208.8377925,0.00016,2]
[338637467,1726834238022,-420.0,0.00016033,2]
[338637469,1726834238032,-420.0,0.00016108,2]
[338637471,1726834238042,-456.91332803,0.00016308,2]
[338637473,1726834238051,-150.0,0.00016323,2]
[338637475,1726834238061,-150.0,0.00016323,2]
[338637477,1726834238071,-524.0,0.00016323,2]
[338637479,1726834238080,-150.0,0.00016323,2]
[338637481,1726834238090,-1216.0,0.00016323,2]
[338637483,1726834238099,-1085.97553949,0.0001633,2]
[338637485,1726834238109,-646.88783564,0.00016338,2]
[338637487,1726834238118,-1390.25277372,0.00016338,2]
[338637489,1726834238128,-1374.249,0.00016398,2]
[338637491,1726834238137,-191.12889684,0.00016398,2]
[338637493,1726834238147,-40434.2259935,0.00016398,2]
[338637495,1726834238156,-2204.02420949,0.00016398,2]
[338637497,1726834238166,-150.112233,0.000164,2]
[338637499,1726834238176,-150.112233,0.000164,2]
[338637501,1726834238186,-150.112233,0.000164,2]
[338637503,1726834238195,-150.112233,0.000164,2]
[338637505,1726834238205,-150.112233,0.000164,2]
[338637507,1726834238214,-154.346572,0.000164,2]
[338637509,1726834238224,-208.8377925,0.000164,2]
[338637511,1726834238233,-208.8377925,0.000164,2]
[338637513,1726834238243,-3000.0,0.000164,2]
[338637515,1726834238253,-1024.75430339,0.000164,2]
[338637517,1726834238262,-1000.0,0.000164,2]
[338637519,1726834238271,-500.0,0.00016406,2]
[338637521,1726834238282,-992.7708317,0.00016406,2]
[338637523,1726834238292,-500.0,0.00016406,2]
[338637525,1726834238303,-992.7708317,0.00016406,2]
[338637527,1726834238314,-500.0,0.00016406,2]
[338637530,1726834238326,-500.0,0.00016406,2]
[338637532,1726834238336,-500.0,0.00016406,2]
[338637534,1726834238351,-500.0,0.00016406,2]
[338637537,1726834238361,-500.0,0.00016406,2]
[338637539,1726834238375,-992.7708317,0.00016406,2]
[338637541,1726834238385,-500.0,0.00016406,2]
[338637543,1726834238397,-500.0,0.00016406,2]
[338637545,1726834238407,-992.7708317,0.00016406,2]
[338637547,1726834238417,-500.0,0.00016406,2]
[338637549,1726834238427,-500.0,0.00016406,2]
[338637551,1726834238436,-992.7708317,0.00016406,2]
[338637553,1726834238449,-500.0,0.00016406,2]
[338637555,1726834238458,-500.0,0.00016406,2]
[338637557,1726834238468,-500.0,0.00016406,2]
[338637559,1726834238477,-992.7708317,0.00016406,2]
[338637561,1726834238487,-500.0,0.00016406,2]
[338637563,1726834238497,-500.0,0.00016406,2]
[338637565,1726834238507,-992.7708317,0.00016406,2]
[338637567,1726834238516,-396.044981,0.00016406,2]
[338637569,1726834238525,-992.7708317,0.00016406,2]
[338637571,1726834238535,-500.0,0.00016406,2]
[338637573,1726834238544,-992.7708317,0.00016406,2]
[338637575,1726834238554,-500.0,0.00016406,2]
[338637577,1726834238563,-500.0,0.00016406,2]
[338637579,1726834238573,-992.7708317,0.00016406,2]
[338637581,1726834238582,-500.0,0.00016406,2]
[338637583,1726834238593,-240.35010699,0.00016406,2]
[338637585,1726834238604,-992.7708317,0.00016406,2]
[338637587,1726834238615,-500.0,0.00016406,2]
[338637589,1726834238625,-500.0,0.00016406,2]
[338637591,1726834238635,-992.7708317,0.00016406,2]
[338637593,1726834238646,-992.7708317,0.00016406,2]
[338637595,1726834238656,-500.0,0.00016406,2]
[338637598,1726834238666,-500.0,0.00016406,2]
[338637600,1726834238675,-992.7708317,0.00016406,2]
[338637602,1726834238685,-992.7708317,0.00016406,2]
[338637604,1726834238695,-500.0,0.00016406,2]
[338637606,1726834238705,-500.0,0.00016406,2]
[338637608,1726834238714,-992.7708317,0.00016406,2]
[338637610,1726834238724,-500.0,0.00016406,2]
[338637612,1726834238733,-992.7708317,0.00016406,2]
[338637614,1726834238743,-484.16393714,0.00016406,2]
[338637616,1726834238753,-500.0,0.00016406,2]
[338637618,1726834238762,-992.7708317,0.00016406,2]
[338637620,1726834238772,-500.0,0.00016406,2]
[338637622,1726834238781,-992.7708317,0.00016406,2]
[338637624,1726834238791,-500.0,0.00016406,2]
[338637626,1726834238800,-992.7708317,0.00016406,2]
[338637628,1726834238816,-992.7708317,0.00016406,2]
[338637630,1726834238826,-992.7708317,0.00016406,2]
[338637633,1726834238838,-992.7708317,0.00016406,2]
[338637635,1726834238849,-992.7708317,0.00016406,2]
[338637637,1726834238859,-992.7708317,0.00016406,2]
[338637639,1726834238868,-992.7708317,0.00016406,2]
[338637641,1726834238878,-992.7708317,0.00016406,2]
[338637643,1726834238890,-992.7708317,0.00016406,2]
[338637645,1726834238901,-992.7708317,0.00016406,2]
[338637647,1726834238911,-992.7708317,0.00016406,2]
[338637650,1726834238922,-992.7708317,0.00016406,2]
[338637652,1726834238935,-992.7708317,0.00016406,2]
[338637654,1726834238947,-992.7708317,0.00016406,2]
[338637656,1726834238957,-992.7708317,0.00016406,2]
[338637658,1726834238969,-992.7708317,0.00016406,2]
[338637660,1726834238980,-992.7708317,0.00016406,2]
[338637663,1726834238993,-992.7708317,0.00016406,2]
[338637665,1726834239003,-992.7708317,0.00016406,2]
[338637667,1726834239014,-992.7708317,0.00016406,2]
[338637669,1726834239024,-992.7708317,0.00016406,2]
[338637671,1726834239034,-992.7708317,0.00016406,2]
[338637673,1726834239043,-992.7708317,0.00016406,2]
[338637675,1726834239052,-992.7708317,0.00016406,2]
[338637677,1726834239061,-992.7708317,0.00016406,2]
[338637679,1726834239071,-992.7708317,0.00016406,2]
[338637681,1726834239081,-992.7708317,0.00016406,2]
[338637683,1726834239090,-992.7708317,0.00016406,2]
[338637685,1726834239100,-992.7708317,0.00016406,2]
[338637687,1726834239109,-992.7708317,0.00016406,2]
[338637689,1726834239119,-992.7708317,0.00016406,2]
[338637691,1726834239129,-992.7708317,0.00016406,2]
[338637693,1726834239139,-992.7708317,0.00016406,2]
[338637696,1726834239151,-992.7708317,0.00016406,2]
[338637698,1726834239160,-992.7708317,0.00016406,2]
[338637700,1726834239170,-992.7708317,0.00016406,2]
[338637702,1726834239180,-992.7708317,0.00016406,2]
[338637704,1726834239190,-992.7708317,0.00016406,2]
[338637706,1726834239201,-331.79344198,0.00016407,2]
[338637708,1726834239210,-288.022669,0.00016407,2]
[338637710,1726834239220,-288.022669,0.00016407,2]
[338637712,1726834239229,-29294.6358264,0.00016407,5]
[338637714,1726834239241,-40434.2259935,0.00016407,2]
[338637715,1726834239253,-2204.02420949,0.00016407,2]
[338637716,1726834239264,-500.0,0.00016407,2]
[338637717,1726834239273,-500.0,0.00016407,2]
[338637718,1726834239282,-199.14604975,0.00016407,2]
[338637719,1726834239291,-396.49253411,0.00016407,2]
[338637722,1726834239302,-500.0,0.00016407,2]
[338637724,1726834239311,-500.0,0.00016407,2]
[338637726,1726834239321,-524.06966594,0.00016407,2]
[338637728,1726834239330,-500.0,0.00016407,2]
[338637730,1726834239339,-500.0,0.00016407,2]
[338637732,1726834239349,-500.0,0.00016407,2]
[338637734,1726834239359,-500.0,0.00016407,2]
[338637736,1726834239372,-588.17289951,0.00016407,2]
[338637738,1726834239383,-500.0,0.00016407,2]
[338637740,1726834239393,-500.0,0.00016407,2]
[338637742,1726834239403,-288.022669,0.00016408,2]
[338637745,1726834239414,-288.022669,0.00016408,2]
[338637748,1726834239424,-40422.4188255,0.00016408,2]
[338637756,1726834239450,-11.807168,0.00016408,2]
[338637760,1726834239459,-2204.02420949,0.00016408,2]
[338637763,1726834239469,-288.022669,0.0001641,2]
[338637766,1726834239478,-288.022669,0.0001641,2]
[338637768,1726834239488,-288.022669,0.0001641,2]
[338637772,1726834239498,-288.022669,0.0001641,2]
[338637775,1726834239507,-3000.0,0.0001641,2]
[338637778,1726834239516,-2231.41162651,0.00016418,2]
[338637828,1726834239980,-5790.19823824,0.00016418,2]
[338637831,1726834239996,-32412.61612875,0.00016418,2]
[338637833,1726834240006,-2204.02420949,0.00016418,2]
[338637835,1726834240016,-288.022669,0.00016418,2]
[338637837,1726834240025,-288.022669,0.00016418,2]
[338637839,1726834240035,-288.022669,0.00016418,2]
[338637841,1726834240044,-288.022669,0.00016418,2]
[338637843,1726834240054,-151.0,0.00016418,2]
[338637845,1726834240064,-151.0,0.00016418,2]
[338637847,1726834240073,-151.0,0.00016418,2]
[338637849,1726834240084,-319.831622,0.00016418,2]
[338637851,1726834240094,-319.831622,0.00016418,2]
[338637853,1726834240103,-151.0,0.00016418,2]
[338637855,1726834240113,-151.0,0.00016418,2]
[338637858,1726834240123,-151.0,0.00016418,2]
[338637860,1726834240133,-151.0,0.00016418,2]
[338637862,1726834240142,-151.0,0.00016418,2]
[338637864,1726834240155,-171.756935,0.00016418,2]
[338637866,1726834240165,-171.756935,0.00016418,2]
[338637868,1726834240174,-151.0,0.00016418,2]
[338637870,1726834240184,-151.0,0.00016418,2]
[338637872,1726834240194,-151.0,0.00016418,2]
[338637874,1726834240204,-151.0,0.00016418,2]
[338637876,1726834240214,-186.963082,0.00016418,2]
[338637878,1726834240224,-151.0,0.00016418,2]
[338637880,1726834240234,-151.0,0.00016418,2]
[338637882,1726834240244,-151.0,0.00016418,2]
[338637884,1726834240255,-151.0,0.00016418,2]
[338637886,1726834240265,-151.0,0.00016418,2]
[338637888,1726834240274,-151.0,0.00016418,2]
[338637890,1726834240283,-151.0,0.00016418,2]
[338637892,1726834240293,-151.0,0.00016418,2]
[338637894,1726834240303,-151.0,0.00016418,2]
[338637897,1726834240315,-151.0,0.00016418,2]
[338637899,1726834240325,-472.930472,0.00016418,2]
[338637901,1726834240335,-472.930472,0.00016418,2]
[338637903,1726834240344,-472.930472,0.00016418,2]
[338637905,1726834240354,-472.930472,0.00016418,2]
[338637907,1726834240364,-19917.26455518,0.00016418,2]
[338638185,1726834243020,-791.2784889,0.00016418,2]
[338638187,1726834243032,-5295.36,0.00016418,2]
[338638421,1726834245801,-208.8377925,0.00016,2]
[338638422,1726834245812,-3532.3677245,0.00016418,2]
[338638593,1726835431951,-456.91332803,0.00015037,2]
[338638595,1726835431960,-20.55415328,0.00015113,2]
[338638601,1726835432009,-139.30984812,0.00015113,2]
[338638603,1726835432019,-300.0,0.00015136,2]
[338638605,1726835432032,-300.0,0.00015136,2]
[338638607,1726835432041,-1492.23157502,0.00015137,2]
[338638860,1726835442954,-2829.58,0.00015137,2]
[338638900,1726835532886,30000.0,0.00015,120]
[338638960,1726835754512,1074.6680441,0.00014013,2]
[338638976,1726835901405,30000.0,0.00014,2]
[338638977,1726835961232,2000.0,0.00014,2]
[338639051,1726836339349,24900.0,0.00013636,2]
[338639100,1726836632220,-500.0,0.00014035,2]
[338639102,1726836632230,-500.0,0.00014035,2]
[338639104,1726836632240,-500.0,0.00014035,2]
[338639106,1726836632250,-512.84861195,0.00014035,2]
[338639108,1726836632260,-500.0,0.00014343,2]
[338639110,1726836632270,-300.0,0.00014804,2]
[338639112,1726836632279,-300.0,0.00014804,2]
[338639114,1726836632288,-1217.9083035,0.00014805,2]
[338639116,1726836632297,-7139.2745635,0.00015065,2]
[338639118,1726836632307,-500.0,0.00015098,2]
[338639120,1726836632316,-500.0,0.00015418,7]
[338639122,1726836632326,-208.8377925,0.00015578,2]
[338639124,1726836632335,-332.13617319,0.00015621,2]
[338639179,1726836638420,-301.68544801,0.00015621,2]
[338639182,1726836638429,-183.6746109,0.00015641,2]
[338639183,1726836638439,-153.0,0.00015641,2]
[338639185,1726836638448,-153.0,0.00015641,2]
[338639187,1726836638457,-153.0,0.00015641,2]
[338639189,1726836638467,-153.0,0.00015641,2]
[338639191,1726836638476,-153.0,0.00015641,2]
[338639193,1726836638487,-153.0,0.00015641,2]
[338639196,1726836638497,-153.0,0.00015641,2]
[338639198,1726836638506,-306.0,0.00015641,2]
[338639200,1726836638515,-208.8377925,0.00015678,2]
[338639202,1726836638525,-153.0,0.00015678,2]
[338639203,1726836638535,-208.8377925,0.00015678,2]
[338639204,1726836638544,-153.0,0.00015855,2]
[338639205,1726836638554,-153.0,0.00015855,2]
[338639206,1726836638563,-153.0,0.00015855,2]
[338639207,1726836638572,-153.0,0.00015855,2]
[338639208,1726836638582,-417.6301551,0.00015855,2]
[338639209,1726836638591,-208.8377925,0.00015855,2]
[338639210,1726836638601,-208.8377925,0.00015855,2]
[338639211,1726836638610,-500.0,0.00015893,2]
[338639212,1726836638620,-1000.0,0.00016,13]
[338639213,1726836638631,-1000.0,0.0001618,2]
[338639214,1726836638641,-150.0,0.00016192,2]
[338639215,1726836638651,-524.0,0.00016192,2]
[338639216,1726836638660,-1216.0,0.00016192,2]
[338639217,1726836638669,-1000.0,0.00016195,2]
[338639218,1726836638679,-1000.0,0.00016201,2]
[338639219,1726836638688,-420.0,0.00016205,2]
[338639220,1726836638698,-1000.0,0.00016221,2]
[338639221,1726836638708,-1000.0,0.00016238,2]
[338639222,1726836638717,-261.1530539,0.00016244,2]
[338639223,1726836638726,-261.15305388,0.00016248,2]
[338639224,1726836638735,-261.15305388,0.00016251,2]
[338639225,1726836638745,-1000.0,0.00016257,2]
[338639226,1726836638754,-1000.0,0.00016259,2]
[338639227,1726836638767,-1000.0,0.00016263,2]
[338639228,1726836638776,-1327.51967694,0.00016264,2]
[338639229,1726836638785,-10704.70858223,0.00016276,2]
[338639230,1726836638795,-1000.0,0.00016283,2]
[338639231,1726836638804,-1000.0,0.00016284,2]
[338639232,1726836638814,-420.0,0.00016284,2]
[338639233,1726836638824,-574.99753977,0.00016285,2]
[338639234,1726836638833,-1000.0,0.00016295,2]
[338639235,1726836638843,-1005.42644391,0.00016301,2]
[338639236,1726836638852,-1552.75857618,0.00016338,2]
[338639237,1726836638862,-1390.25277372,0.00016338,2]
[338639238,1726836638871,-1000.0,0.00016339,2]
[338639240,1726836638882,-1000.0,0.00016344,2]
[338639242,1726836638891,-500.0,0.0001635,2]
[338639244,1726836638900,-569.48174863,0.0001635,2]
[338639245,1726836638909,-500.0,0.0001635,2]
[338639246,1726836638918,-268.01365224,0.0001635,2]
[338639247,1726836638928,-500.0,0.0001635,2]
[338639248,1726836638938,-500.0,0.0001635,2]
[338639249,1726836638948,-500.0,0.0001635,2]
[338639250,1726836638963,-388.97278295,0.0001635,2]
[338639251,1726836638972,-388.17289951,0.0001635,2]
[338639252,1726836638981,-500.0,0.0001635,2]
[338639253,1726836638990,-500.0,0.0001635,2]
[338639254,1726836638999,-500.0,0.0001635,2]
[338639255,1726836639009,-500.0,0.0001635,2]
[338639256,1726836639019,-500.0,0.0001635,2]
[338639257,1726836639030,-500.0,0.0001635,2]
[338639258,1726836639040,-500.0,0.0001635,2]
[338639259,1726836639051,-500.0,0.0001635,2]
[338639260,1726836639061,-500.0,0.0001635,2]
[338639261,1726836639070,-169.99009167,0.0001635,2]
[338639262,1726836639081,-500.0,0.0001635,2]